fUSD/lending_fUSD_20250905
["ID","MTS","AMOUNT","RATE_DAILY","PERIOD"]
[383630562,1757050232401,-379.57303491,0.00022871,2]
[383630564,1757050232410,-3709.94917307,0.00022874,2]
[383630566,1757050232422,-753.9609935,0.00022874,2]
[383630700,1757050237867,-182.73838602,0.00022773,2]
[383630701,1757050237877,-250.88417825,0.00022874,2]
[383630702,1757050237888,-269.74772397,0.00022874,2]
[383630703,1757050237899,-7052.94793121,0.00022874,2]
[383630704,1757050237908,-203.64,0.00022949,2]
[383630705,1757050237918,-249.0,0.00023,2]
[383630706,1757050237927,-160.0,0.00023136,7]
[383630707,1757050237937,-250.0,0.00023216,2]
[383630708,1757050237946,-280.19,0.00023226,2]
[383630709,1757050237955,-414.5031969,0.00023349,2]
[383630710,1757050237964,-232.26105149,0.00023349,2]
[383630711,1757050237974,-1554.96587905,0.0002335,3]
[383630712,1757050238095,-1099.9238026,0.0002335,3]
[383630713,1757050238111,-254.23805349,0.0002335,3]
[383630714,1757050238123,-436.74707373,0.0002335,3]
[383630715,1757050238213,-3349.7314001,0.0002335,3]
[383630788,1757050504456,300.0,0.0003,120]
[383630822,1757051115725,155.05,0.00011071,2]
[383630834,1757051432374,-504.509032,0.0002189,2]
[383630835,1757051432384,-158.0,0.00022,2]
[383630836,1757051432394,-155.05,0.00022143,2]
[383630837,1757051432408,-536.64,0.00022349,2]
[383630838,1757051432417,-171.69,0.0002244,2]
[383630839,1757051432427,-2283.72971953,0.0002244,2]
[383630840,1757051432436,-200.0,0.00022522,2]
[383630841,1757051432447,-188.92,0.00022548,2]
[383630842,1757051432456,-666.0,0.00022608,3]
[383630843,1757051432465,-151.54,0.00022727,2]
[383630844,1757051432475,-1200.0,0.00022794,2]
[383630845,1757051432484,-224.87500048,0.00022795,2]
[383630846,1757051432495,-545.55385374,0.00022795,2]
[383630847,1757051432504,-300.0,0.00022795,2]
[383630848,1757051432515,-156.0,0.00022795,2]
[383630849,1757051432525,-1200.0,0.00022796,2]
[383630850,1757051432537,-5040.48125793,0.00022797,2]
[383630851,1757051432547,-150.0,0.00022898,2]
[383630852,1757051432556,-16532.82,0.00022898,2]
[383630853,1757051432567,-1293.86,0.00022898,2]
[383630854,1757051432578,-239.0,0.000229,2]
[383630855,1757051432588,-462.1926,0.00022926,2]
[383630858,1757051432599,-47058.54817713,0.00022927,3]
[383630859,1757051432623,-2155.81986064,0.00022927,3]
[383630860,1757051432635,-1057.44816829,0.00022927,3]
[383630861,1757051432647,-611.52910207,0.00022927,3]
[383630862,1757051432686,-57639.4827058,0.00022927,3]
[383630863,1757051432696,-2360.5172942,0.00022927,2]
[383630864,1757051432707,-3005.80627148,0.00022927,2]
[383630865,1757051432719,-1565.87728746,0.00022927,2]
[383630866,1757051432729,-549.52490051,0.00022927,2]
[383630867,1757051432738,-173.15444205,0.00022927,2]
[383630868,1757051432748,-151.0,0.00022927,7]
[383630869,1757051432757,-195.992058,0.00022927,7]
[383630870,1757051432767,-170.99202834,0.00022927,2]
[383630872,1757051432778,-1222.97041126,0.00022927,2]
[383630901,1757051438075,-290.15223783,0.00022926,2]
[383630902,1757051438085,-162.58273605,0.00022926,2]
[383630903,1757051438095,-861.12200479,0.00022927,2]
[383630904,1757051438107,-3962.55749776,0.00022927,2]
[383630905,1757051438119,-4169.96916336,0.00022927,2]
[383630906,1757051438130,-697.75901793,0.00022927,2]
[383630907,1757051438139,-166.53,0.00023001,2]
[383630908,1757051438148,-178.32,0.00023001,2]
[383630909,1757051438158,-158.0,0.00023014,7]
[383630910,1757051438167,-210.48,0.00023017,3]
[383630911,1757051438177,-631.44,0.00023017,3]
[383630912,1757051438186,-168.01098632,0.00023027,2]
[383630913,1757051438197,-3158.92017496,0.00023027,2]
[383630914,1757051438208,-4184.156181,0.00023027,2]
[383630915,1757051438238,-84915.63125512,0.00023027,2]
[383630916,1757051438247,-1700.7178723,0.00023027,2]
[383630917,1757051438256,-4081.8556586,0.00023027,2]
[383630918,1757051438266,-7223.9504361,0.00023027,2]
[383630919,1757051438275,-334409.2964375,0.00023027,2]
[383630920,1757051438284,-3193.2288619,0.00023027,2]
[383630921,1757051438293,-151.0,0.00023027,7]
[383630922,1757051438304,-151.0,0.00023027,7]
[383630923,1757051438314,-151.0,0.00023027,7]
[383630924,1757051438323,-151.0,0.00023027,7]
[383630925,1757051438333,-500.0,0.00023073,2]
[383630926,1757051438342,-502.54277577,0.00023073,2]
[383630928,1757051438352,-501.80751593,0.00023073,2]
[383630930,1757051438361,-505.68854824,0.00023073,2]
[383630932,1757051438370,-160.0,0.00023167,7]
[383630934,1757051438379,-481.96,0.000232,2]
[383630936,1757051438390,-224.15,0.0002324,2]
[383630938,1757051438400,-1782.98806,0.00023349,2]
[383630940,1757051438414,-3010.69135387,0.0002335,3]
[383630941,1757051438423,-318.79762453,0.0002337,2]
[383630943,1757051438432,-6932.20085305,0.00023467,2]
[383630945,1757051438443,-11085.37012338,0.00023467,2]
[383630947,1757051438453,-501.54868394,0.00023473,2]
[383630949,1757051438463,-500.0,0.00023473,2]
[383630951,1757051438472,-500.0,0.00023473,2]
[383630953,1757051438483,-500.0,0.00023473,2]
[383630955,1757051438495,-150.0,0.00023473,2]
[383630957,1757051438505,-500.0,0.00023473,2]
[383630959,1757051438514,-500.0,0.00023473,2]
[383630961,1757051438523,-500.0,0.00023473,2]
[383630963,1757051438533,-150.0,0.00023473,2]
[383630965,1757051438542,-257.91778498,0.00023714,2]
[383630967,1757051438552,-194.72792766,0.00023714,2]
[383630969,1757051438561,-500.0,0.00023747,2]
[383630971,1757051438572,-150.0,0.00023747,2]
[383630973,1757051438582,-500.0,0.00023747,2]
[383630975,1757051438591,-500.0,0.00023747,2]
[383630977,1757051438600,-500.0,0.00023747,2]
[383630979,1757051438610,-207.94176887,0.00023747,2]
[383631003,1757051438824,-13045.49554193,0.00023917,2]
[383631005,1757051438833,-2038.8,0.00024,2]
[383631008,1757051438844,-6932.20085305,0.00024006,2]
[383631010,1757051438853,-11085.37012338,0.00024006,2]
[383631012,1757051438862,-954.04783781,0.00024021,2]
[383631014,1757051438872,-507.74245883,0.00024021,2]
[383631016,1757051438881,-200.0,0.00024021,2]
[383631018,1757051438891,-500.0,0.00024021,2]
[383631020,1757051438900,-500.0,0.00024021,2]
[383631022,1757051438909,-472.27,0.00024021,2]
[383631024,1757051438919,-234.0,0.0002408,2]
[383631026,1757051438928,-503.0,0.00024164,2]
[383631028,1757051438938,-160.0,0.00024164,7]
[383631030,1757051438948,-201.93286099,0.00024262,2]
[383631032,1757051438957,-500.0,0.00024295,2]
[383631034,1757051438967,-500.0,0.00024295,2]
[383631036,1757051438976,-150.0,0.00024306,2]
[383631038,1757051438985,-150.0,0.00024306,2]
[383631039,1757051438995,-150.0,0.00024306,2]
[383631042,1757051439004,-150.0,0.00024306,2]
[383631044,1757051439015,-150.0,0.00024306,2]
[383631046,1757051439025,-202.07439822,0.00024306,2]
[383631048,1757051439035,-300.0,0.00024318,14]
[383631050,1757051439044,-500.0,0.00024357,2]
[383631052,1757051439053,-151.51,0.00024357,2]
[383631053,1757051439063,-420.96,0.00024387,3]
[383631055,1757051439073,-1000.0,0.000244,3]
[383631057,1757051439082,-1041.0,0.000244,3]
[383631059,1757051439092,-1000.0,0.000244,3]
[383631061,1757051439101,-1000.0,0.000244,3]
[383631063,1757051439111,-1000.0,0.000244,2]
[383631065,1757051439122,-1000.0,0.000244,2]
[383631067,1757051439131,-1000.0,0.000244,2]
[383631069,1757051439141,-1000.0,0.000244,2]
[383631072,1757051439150,-1000.0,0.000244,2]
[383631074,1757051439159,-1000.0,0.000244,2]
[383631076,1757051439169,-1004.0,0.000244,3]
[383631078,1757051439179,-1002.0,0.000244,3]
[383631080,1757051439189,-150.0,0.000244,3]
[383631082,1757051439198,-150.0,0.000244,3]
[383631084,1757051439207,-160.0,0.000244,3]
[383631086,1757051439217,-212.63008182,0.000244,3]
[383631088,1757051439226,-514.736181,0.000244,3]
[383631090,1757051439235,-224.15,0.00024402,2]
[383631092,1757051439244,-100706.6142999,0.000245,2]
[383631093,1757051439254,-170.637508,0.000245,10]
[383631095,1757051439263,-303.02,0.000245,2]
[383631097,1757051439273,-6932.20085305,0.00024546,2]
[383631099,1757051439282,-11085.37012338,0.00024546,2]
[383631101,1757051439292,-173.15444196,0.00024556,2]
[383631103,1757051439301,-965.114007,0.00024557,2]
[383631106,1757051439315,-500.0,0.00024569,2]
[383631107,1757051439324,-500.0,0.00024569,2]
[383631109,1757051439333,-150.0,0.0002458,2]
[383631111,1757051439343,-150.0,0.0002458,2]
[383631113,1757051439352,-1000.0,0.000246,8]
[383631115,1757051439362,-151.51,0.00024631,2]
[383631117,1757051439371,-150.0,0.00024656,2]
[383631119,1757051439380,-670.9787268,0.00024656,2]
[383631121,1757051439390,-3162.0,0.00024657,2]
[383631123,1757051439403,-496.73262394,0.00024657,2]
[383631125,1757051439413,-404.5773931,0.00024657,2]
[383631127,1757051439422,-397.81439846,0.00024657,2]
[383631129,1757051439432,-402.41226014,0.00024657,2]
[383631131,1757051439441,-400.0,0.00024657,2]
[383631133,1757051439451,-400.0,0.00024657,2]
[383631135,1757051439460,-400.0,0.00024657,2]
[383631137,1757051439469,-216.23248228,0.00024657,2]
[383631139,1757051439478,-400.0,0.00024657,2]
[383631141,1757051439488,-405.06087985,0.00024657,2]
[383631143,1757051439503,-400.0,0.00024657,2]
[383631145,1757051439517,-400.0,0.00024657,2]
[383631147,1757051439527,-400.0,0.00024657,2]
[383631149,1757051439536,-402.86346352,0.00024657,2]
[383631151,1757051439546,-400.0,0.00024657,2]
[383631153,1757051439555,-400.0,0.00024657,2]
[383631155,1757051439564,-182.07366,0.00024657,2]
[383631156,1757051439574,-154.451957,0.00024657,2]
[383631158,1757051439584,-400.0,0.00024657,2]
[383631160,1757051439594,-400.0,0.00024657,2]
[383631162,1757051439604,-400.0,0.00024657,2]
[383631164,1757051439614,-400.0,0.00024657,2]
[383631166,1757051439624,-400.0,0.00024657,2]
[383631168,1757051439633,-400.0,0.00024657,2]
[383631170,1757051439642,-400.0,0.00024657,2]
[383631172,1757051439652,-400.0,0.00024657,2]
[383631174,1757051439661,-400.0,0.00024657,2]
[383631176,1757051439670,-400.0,0.00024657,2]
[383631178,1757051439680,-400.0,0.00024657,2]
[383631180,1757051439689,-400.0,0.00024657,2]
[383631182,1757051439699,-400.0,0.00024657,2]
[383631184,1757051439708,-400.0,0.00024657,2]
[383631186,1757051439717,-402.31999702,0.00024657,2]
[383631188,1757051439727,-400.0,0.00024657,2]
[383631190,1757051439736,-400.0,0.00024657,2]
[383631192,1757051439745,-400.0,0.00024657,2]
[383631194,1757051439755,-404.08749194,0.00024657,2]
[383631196,1757051439764,-411.02066643,0.00024657,2]
[383631198,1757051439773,-407.3725766,0.00024657,2]
[383631200,1757051439783,-400.0,0.00024657,2]
[383631202,1757051439792,-400.0,0.00024657,2]
[383631204,1757051439801,-415.28986915,0.00024657,2]
[383631206,1757051439810,-400.0,0.00024657,2]
[383631208,1757051439819,-400.0,0.00024657,2]
[383631210,1757051439829,-403.74055895,0.00024657,2]
[383631212,1757051439838,-400.0,0.00024657,2]
[383631214,1757051439847,-400.0,0.00024657,2]
[383631216,1757051439857,-400.0,0.00024657,2]
[383631218,1757051439866,-400.0,0.00024657,2]
[383631220,1757051439876,-403.48601585,0.00024657,2]
[383631222,1757051439885,-400.0,0.00024657,2]
[383631224,1757051439894,-400.0,0.00024657,2]
[383631226,1757051439904,-406.0004733,0.00024657,2]
[383631228,1757051439914,-400.0,0.00024657,2]
[383631230,1757051439923,-400.0,0.00024657,2]
[383631232,1757051439933,-400.0,0.00024657,2]
[383631234,1757051439944,-400.0,0.00024657,2]
[383631236,1757051439953,-400.0,0.00024657,2]
[383631238,1757051439962,-405.40608866,0.00024657,2]
[383631240,1757051439974,-400.0,0.00024657,2]
[383631242,1757051439983,-400.0,0.00024657,2]
[383631245,1757051439992,-400.0,0.00024657,2]
[383631247,1757051440002,-400.0,0.00024657,2]
[383631249,1757051440011,-407.57538635,0.00024657,2]
[383631251,1757051440021,-400.0,0.00024657,2]
[383631253,1757051440031,-400.0,0.00024657,2]
[383631255,1757051440040,-400.0,0.00024657,2]
[383631257,1757051440050,-400.0,0.00024657,2]
[383631259,1757051440059,-400.0,0.00024657,2]
[383631261,1757051440067,-400.0,0.00024657,2]
[383631263,1757051440076,-400.0,0.00024657,2]
[383631265,1757051440086,-402.63845154,0.00024657,2]
[383631267,1757051440094,-400.0,0.00024657,2]
[383631269,1757051440103,-400.0,0.00024657,2]
[383631271,1757051440113,-403.15993573,0.00024657,2]
[383631273,1757051440122,-400.0,0.00024657,2]
[383631275,1757051440131,-400.0,0.00024657,2]
[383631277,1757051440140,-400.0,0.00024657,2]
[383631279,1757051440149,-400.0,0.00024657,2]
[383631281,1757051440159,-400.0,0.00024657,2]
[383631283,1757051440168,-390.23397863,0.00024657,2]
[383631285,1757051440178,-400.0,0.00024657,2]
[383631287,1757051440187,-400.0,0.00024657,2]
[383631289,1757051440197,-400.0,0.00024657,2]
[383631291,1757051440206,-400.0,0.00024657,2]
[383631293,1757051440216,-400.0,0.00024657,2]
[383631295,1757051440225,-400.0,0.00024657,2]
[383631297,1757051440235,-400.0,0.00024657,2]
[383631299,1757051440244,-402.48579627,0.00024657,2]
[383631301,1757051440254,-400.0,0.00024657,2]
[383631303,1757051440263,-400.0,0.00024657,2]
[383631305,1757051440272,-400.0,0.00024657,2]
[383631307,1757051440282,-400.0,0.00024657,2]
[383631309,1757051440291,-400.0,0.00024657,2]
[383631311,1757051440301,-400.0,0.00024657,2]
[383631313,1757051440310,-400.0,0.00024657,2]
[383631315,1757051440319,-400.0,0.00024657,2]
[383631317,1757051440328,-400.0,0.00024657,2]
[383631319,1757051440338,-402.23675185,0.00024657,2]
[383631321,1757051440347,-400.0,0.00024657,2]
[383631322,1757051440356,-400.0,0.00024657,2]
[383631323,1757051440365,-182.07366,0.00024657,2]
[383631324,1757051440377,-400.0,0.00024657,2]
[383631325,1757051440386,-400.0,0.00024657,2]
[383631326,1757051440396,-400.0,0.00024657,2]
[383631327,1757051440410,-400.0,0.00024657,2]
[383631328,1757051440419,-400.0,0.00024657,2]
[383631329,1757051440428,-400.0,0.00024657,2]
[383631330,1757051440437,-404.73491739,0.00024657,2]
[383631332,1757051440448,-400.0,0.00024657,2]
[383631334,1757051440457,-400.0,0.00024657,2]
[383631337,1757051440471,-400.0,0.00024657,2]
[383631339,1757051440488,-403.62970828,0.00024657,2]
[383631341,1757051440501,-400.0,0.00024657,2]
[383631344,1757051440513,-405.94137465,0.00024657,2]
[383631346,1757051440524,-400.0,0.00024657,2]
[383631348,1757051440536,-400.0,0.00024657,2]
[383631351,1757051440549,-400.0,0.00024657,2]
[383631353,1757051440560,-400.0,0.00024657,2]
[383631355,1757051440573,-400.0,0.00024657,2]
[383631357,1757051440586,-400.0,0.00024657,2]
[383631360,1757051440599,-400.0,0.00024657,2]
[383631362,1757051440612,-400.0,0.00024657,2]
[383631365,1757051440623,-400.0,0.00024657,2]
[383631367,1757051440635,-400.0,0.00024657,2]
[383631369,1757051440646,-405.96600064,0.00024657,2]
[383631371,1757051440656,-400.0,0.00024657,2]
[383631373,1757051440669,-400.0,0.00024657,2]
[383631376,1757051440680,-400.0,0.00024657,2]
[383631378,1757051440692,-402.3450358,0.00024657,2]
[383631380,1757051440704,-400.0,0.00024657,2]
[383631383,1757051440716,-401.74805658,0.00024657,2]
[383631385,1757051440728,-405.49876391,0.00024657,2]
[383631388,1757051440740,-500.0,0.00024657,2]
[383631390,1757051440752,-510.12096061,0.00024657,2]
[383631393,1757051440764,-400.0,0.00024657,2]
[383631395,1757051440776,-400.0,0.00024657,2]
[383631397,1757051440789,-409.60597085,0.00024657,2]
[383631400,1757051440801,-154.451958,0.00024657,2]
[383631402,1757051440813,-400.0,0.00024657,2]
[383631405,1757051440824,-403.84366303,0.00024657,2]
[383631407,1757051440836,-400.0,0.00024657,2]
[383631409,1757051440847,-400.0,0.00024657,2]
[383631411,1757051440860,-400.0,0.00024657,2]
[383631414,1757051440873,-400.0,0.00024657,2]
[383631416,1757051440886,-400.0,0.00024657,2]
[383631418,1757051440897,-406.16573029,0.00024657,2]
[383631421,1757051440909,-400.0,0.00024657,2]
[383631423,1757051440920,-400.0,0.00024657,2]
[383631425,1757051440931,-416.02075545,0.00024657,2]
[383631427,1757051440941,-400.0,0.00024657,2]
[383631429,1757051440952,-400.0,0.00024657,2]
[383631432,1757051440964,-400.0,0.00024657,2]
[383631434,1757051440978,-407.6256768,0.00024657,2]
[383631436,1757051440989,-400.0,0.00024657,2]
[383631438,1757051441000,-400.0,0.00024657,2]
[383631440,1757051441010,-400.0,0.00024657,2]
[383631442,1757051441020,-407.23361038,0.00024657,2]
[383631445,1757051441033,-402.4715326,0.00024657,2]
[383631447,1757051441045,-400.0,0.00024657,2]
[383631449,1757051441057,-400.0,0.00024657,2]
[383631451,1757051441067,-400.0,0.00024657,2]
[383631452,1757051441077,-425.20472381,0.00024657,2]
[383631455,1757051441088,-400.0,0.00024657,2]
[383631457,1757051441099,-400.0,0.00024657,2]
[383631459,1757051441110,-403.25591226,0.00024657,2]
[383631461,1757051441121,-400.0,0.00024657,2]
[383631463,1757051441132,-400.0,0.00024657,2]
[383631465,1757051441142,-405.99930262,0.00024657,2]
[383631467,1757051441153,-403.83033623,0.00024657,2]
[383631469,1757051441164,-400.0,0.00024657,2]
[383631471,1757051441175,-400.0,0.00024657,2]
[383631474,1757051441185,-400.0,0.00024657,2]
[383631476,1757051441196,-400.0,0.00024657,2]
[383631478,1757051441210,-400.0,0.00024657,2]
[383631480,1757051441221,-400.0,0.00024657,2]
[383631482,1757051441232,-400.0,0.00024657,2]
[383631485,1757051441243,-400.0,0.00024657,2]
[383631487,1757051441254,-400.0,0.00024657,2]
[383631489,1757051441265,-400.0,0.00024657,2]
[383631491,1757051441276,-400.0,0.00024657,2]
[383631493,1757051441288,-401.68356879,0.00024657,2]
[383631495,1757051441299,-400.0,0.00024657,2]
[383631497,1757051441310,-400.0,0.00024657,2]
[383631499,1757051441321,-400.0,0.00024657,2]
[383631501,1757051441332,-400.0,0.00024657,2]
[383631503,1757051441344,-404.71743702,0.00024657,2]
[383631506,1757051441355,-400.0,0.00024657,2]
[383631508,1757051441366,-427.37,0.00024657,2]
[383631510,1757051441377,-400.0,0.00024657,2]
[383631512,1757051441388,-400.0,0.00024657,2]
[383631514,1757051441400,-400.0,0.00024657,2]
[383631516,1757051441413,-169.10819598,0.00024657,2]
[383631518,1757051441425,-400.0,0.00024657,2]
[383631520,1757051441436,-400.0,0.00024657,2]
[383631522,1757051441447,-400.0,0.00024657,2]
[383631525,1757051441458,-390.93891199,0.00024657,2]
[383631527,1757051441469,-400.0,0.00024657,2]
[383631529,1757051441481,-400.0,0.00024657,2]
[383631531,1757051441492,-400.0,0.00024657,2]
[383631533,1757051441503,-401.25668697,0.00024657,2]
[383631535,1757051441515,-403.56149027,0.00024657,2]
[383631538,1757051441526,-400.0,0.00024657,2]
[383631540,1757051441538,-400.0,0.00024657,2]
[383631542,1757051441549,-400.0,0.00024657,2]
[383631544,1757051441560,-400.0,0.00024657,2]
[383631546,1757051441571,-402.88996757,0.00024657,2]
[383631548,1757051441583,-400.0,0.00024657,2]
[383631550,1757051441595,-400.0,0.00024657,2]
[383631553,1757051441606,-400.0,0.00024657,2]
[383631555,1757051441617,-402.84314712,0.00024657,2]
[383631557,1757051441629,-400.0,0.00024657,2]
[383631559,1757051441639,-400.0,0.00024657,2]
[383631561,1757051441651,-400.0,0.00024657,2]
[383631563,1757051441663,-400.0,0.00024657,2]
[383631566,1757051441674,-400.0,0.00024657,2]
[383631568,1757051441685,-400.0,0.00024657,2]
[383631570,1757051441697,-400.0,0.00024657,2]
[383631572,1757051441709,-400.0,0.00024657,2]
[383631574,1757051441719,-400.0,0.00024657,2]
[383631576,1757051441731,-405.42100002,0.00024657,2]
[383631578,1757051441743,-400.0,0.00024657,2]
[383631580,1757051441754,-400.28037959,0.00024657,2]
[383631583,1757051441765,-400.0,0.00024657,2]
[383631585,1757051441776,-400.0,0.00024657,2]
[383631587,1757051441786,-400.0,0.00024657,2]
[383631589,1757051441798,-400.0,0.00024657,2]
[383631591,1757051441809,-400.0,0.00024657,2]
[383631593,1757051441819,-400.0,0.00024657,2]
[383631596,1757051441830,-400.0,0.00024657,2]
[383631598,1757051441841,-400.0,0.00024657,2]
[383631600,1757051441853,-400.0,0.00024657,2]
[383631602,1757051441863,-400.0,0.00024657,2]
[383631604,1757051441875,-400.0,0.00024657,2]
[383631606,1757051441887,-400.0,0.00024657,2]
[383631608,1757051441897,-400.0,0.00024657,2]
[383631611,1757051441909,-400.0,0.00024657,2]
[383631613,1757051441920,-400.0,0.00024657,2]
[383631615,1757051441931,-400.0,0.00024657,2]
[383631617,1757051441942,-226.09754416,0.00024657,2]
[383631619,1757051441953,-400.0,0.00024657,2]
[383631622,1757051441964,-400.0,0.00024657,2]
[383631624,1757051441975,-400.0,0.00024657,2]
[383631626,1757051441986,-400.0,0.00024657,2]
[383631628,1757051441997,-400.0,0.00024657,2]
[383631630,1757051442008,-400.0,0.00024657,2]
[383631632,1757051442019,-400.0,0.00024657,2]
[383631634,1757051442030,-400.0,0.00024657,2]
[383631636,1757051442041,-400.0,0.00024657,2]
[383631639,1757051442052,-403.00372425,0.00024657,2]
[383631641,1757051442063,-400.0,0.00024657,2]
[383631643,1757051442075,-400.0,0.00024657,2]
[383631645,1757051442085,-400.0,0.00024657,2]
[383631647,1757051442096,-404.7810094,0.00024657,2]
[383631649,1757051442107,-400.0,0.00024657,2]
[383631652,1757051442118,-400.0,0.00024657,2]
[383631654,1757051442130,-400.0,0.00024657,2]
[383631656,1757051442141,-400.0,0.00024657,2]
[383631658,1757051442152,-400.0,0.00024657,2]
[383631660,1757051442163,-400.0,0.00024657,2]
[383631663,1757051442174,-176.65349722,0.00024657,2]
[383631665,1757051442185,-400.0,0.00024657,2]
[383631667,1757051442196,-400.0,0.00024657,2]
[383631669,1757051442207,-400.0,0.00024657,2]
[383631671,1757051442219,-302.53956452,0.00024657,2]
[383631674,1757051442231,-400.0,0.00024657,2]
[383631676,1757051442242,-400.0,0.00024657,2]
[383631678,1757051442255,-409.07191952,0.00024657,2]
[383631680,1757051442267,-400.0,0.00024657,2]
[383631683,1757051442280,-400.0,0.00024657,2]
[383631685,1757051442292,-406.86589557,0.00024657,2]
[383631687,1757051442304,-400.0,0.00024657,2]
[383631689,1757051442316,-400.0,0.00024657,2]
[383631692,1757051442327,-400.0,0.00024657,2]
[383631694,1757051442340,-400.0,0.00024657,2]
[383631696,1757051442351,-400.0,0.00024657,2]
[383631698,1757051442362,-400.0,0.00024657,2]
[383631700,1757051442373,-409.88619731,0.00024657,2]
[383631702,1757051442382,-400.0,0.00024657,2]
[383631704,1757051442391,-400.0,0.00024657,2]
[383631706,1757051442403,-400.0,0.00024657,2]
[383631708,1757051442415,-400.0,0.00024657,2]
[383631710,1757051442424,-410.16124347,0.00024657,2]
[383631712,1757051442433,-400.0,0.00024657,2]
[383631713,1757051442443,-400.0,0.00024657,2]
[383631714,1757051442452,-400.0,0.00024657,2]
[383631715,1757051442461,-409.33954283,0.00024657,2]
[383631736,1757051442718,-410.21575129,0.00024657,2]
[383631739,1757051442741,-400.0,0.00024657,2]
[383631742,1757051442761,-400.0,0.00024657,2]
[383631745,1757051442772,-400.0,0.00024657,2]
[383631746,1757051442781,-400.0,0.00024657,2]
[383631748,1757051442791,-400.0,0.00024657,2]
[383631750,1757051442800,-400.0,0.00024657,2]
[383631753,1757051442810,-400.0,0.00024657,2]
[383631754,1757051442819,-400.0,0.00024657,2]
[383631757,1757051442829,-400.0,0.00024657,2]
[383631759,1757051442839,-400.0,0.00024657,2]
[383631760,1757051442848,-400.0,0.00024657,2]
[383631762,1757051442857,-415.56822334,0.00024657,2]
[383631764,1757051442867,-400.0,0.00024657,2]
[383631767,1757051442876,-400.0,0.00024657,2]
[383631769,1757051442885,-400.0,0.00024657,2]
[383631771,1757051442895,-400.0,0.00024657,2]
[383631774,1757051442905,-400.0,0.00024657,2]
[383631776,1757051442914,-400.0,0.00024657,2]
[383631778,1757051442924,-402.93888625,0.00024657,2]
[383631780,1757051442934,-180.70225199,0.00024657,2]
[383631782,1757051442944,-500.0,0.00024657,2]
[383631785,1757051442955,-500.0,0.00024657,2]
[383631786,1757051442965,-500.0,0.00024657,2]
[383631788,1757051442975,-542.09900876,0.00024657,2]
[383631790,1757051442984,-400.0,0.00024657,2]
[383631792,1757051442994,-400.0,0.00024657,2]
[383631794,1757051443004,-500.0,0.00024657,2]
[383631796,1757051443013,-500.0,0.00024657,2]
[383631798,1757051443022,-500.0,0.00024657,2]
[383631800,1757051443031,-500.0,0.00024657,2]
[383631802,1757051443040,-400.0,0.00024657,2]
[383631804,1757051443050,-400.0,0.00024657,2]
[383631806,1757051443059,-400.0,0.00024657,2]
[383631808,1757051443068,-400.0,0.00024657,2]
[383631810,1757051443077,-400.0,0.00024657,2]
[383631812,1757051443087,-400.0,0.00024657,2]
[383631814,1757051443095,-400.0,0.00024657,2]
[383631816,1757051443105,-400.11522754,0.00024657,2]
[383631818,1757051443114,-400.0,0.00024657,2]
[383631820,1757051443122,-400.0,0.00024657,2]
[383631822,1757051443131,-400.0,0.00024657,2]
[383631824,1757051443139,-539.96,0.00024657,2]